bitfinex/quotes_SOLUSD_20240930
["timestamp","ask_amount","ask_price","bid_price","bid_amount"]
[1727740251949,23.776884,152.7,152.62,15.1212]
[1727740252947,23.776884,152.7,152.66,6.5501]
[1727740253651,23.776884,152.7,152.67,6.55]
[1727740256632,23.776884,152.71,152.67,6.55]
[1727740257048,23.776884,152.69,152.67,6.55]
[1727740257262,1.63764271,152.68,152.67,6.55]
[1727740258039,23.776884,152.69,152.67,6.55]
[1727740259838,1.63763972,152.68,152.66,6.5504]
[1727740260458,45.681784,152.69,152.65,6.5508]
[1727740260663,23.776884,152.66,152.63,6.5517]
[1727740260838,1.63803388,152.65,152.63,6.5517]
[1727740261046,30.328184,152.64,152.59,6.5531]
[1727740261267,1.63826442,152.63,152.54,24.5832571]
[1727740261439,1.63826442,152.63,152.59,6.5531]
[1727740261763,1.63826442,152.63,152.58,6.5537]
[1727740262139,1.63826442,152.63,152.59,6.5533]
[1727740262449,16.48895912,152.69,152.6,18.5752571]
[1727740262634,15.3557,152.69,152.66,6.5504]
[1727740263057,16.065,152.73,152.66,18.5752571]
[1727740263362,16.065,152.73,152.67,1.3099986]
[1727740263663,22.6129,152.73,152.67,6.5497]
[1727740263839,16.065,152.73,152.69,6.5491]
[1727740264365,19.7,152.71,152.62,18.5752571]
[1727740264556,35.765,152.73,152.63,1.3103059]
[1727740264861,22.6125,152.73,152.67,6.55]
[1727740265754,6.5481,152.72,152.66,6.5504]
[1727740266131,6.5481,152.72,152.67,6.55]
[1727740266634,23.776884,152.72,152.67,6.55]
[1727740268037,30.325184,152.72,152.66,6.5504]
[1727740268243,30.325684,152.7,152.61,20.0]
[1727740268468,23.776884,152.68,152.64,6.5513]
[1727740268638,1.63783861,152.67,152.64,6.5513]
[1727740268956,1.63783861,152.67,152.56,35.72625951]
[1727740268957,23.776884,152.66,152.56,35.72625951]
[1727740269136,23.776884,152.64,152.59,6.553]
[1727740269454,23.776884,152.62,152.58,6.5538]
[1727740269661,1.63854408,152.61,152.58,6.5538]
[1727740269835,23.776884,152.62,152.58,6.5538]
[1727740270245,23.776884,152.6,152.56,6.5545]
[1727740270455,1.63871514,152.59,152.51,16.075]
[1727740270845,23.776884,152.6,152.51,16.075]
[1727740271054,22.2039,152.67,152.55,29.71385951]
[1727740271246,22.2039,152.67,152.52,1.31103849]
[1727740271247,28.7543,152.67,152.61,6.5522]
[1727740271761,22.2039,152.67,152.59,1.31059414]
[1727740272154,22.2039,152.67,152.63,6.5517]
[1727740272658,22.2039,152.67,152.59,1.31059414]
[1727740272850,22.2039,152.67,152.61,6.5522]
[1727740273467,23.776884,152.66,152.62,6.5521]
[1727740273845,22.2039,152.67,152.58,6.5535]
[1727740273846,30.328284,152.64,152.58,6.5535]
[1727740274047,23.776884,152.62,152.58,6.5535]
[1727740274340,23.776884,152.6,152.48,42.98409657]
[1727740274547,1.63874786,152.59,152.56,6.5547]
[1727740274757,23.776884,152.58,152.55,6.555]
[1727740275267,23.776884,152.58,152.54,6.5556]
[1727740276064,1.63891357,152.57,152.54,6.5556]
[1727740276263,23.776884,152.58,152.52,6.5564]
[1727740276264,1.63893075,152.56,152.52,6.5564]
[1727740276758,23.776884,152.55,152.52,6.5564]
[1727740276945,23.776884,152.56,152.52,6.5564]
[1727740277566,23.776884,152.58,152.48,1.3112916]
[1727740277857,23.776884,152.58,152.54,6.5556]
[1727740278068,23.776884,152.58,152.55,6.5551]
[1727740278363,23.776884,152.58,152.5,29.71385951]
[1727740278364,23.776884,152.58,152.56,6.5547]
[1727740279073,22.6657,152.59,152.56,6.5547]
[1727740284380,29.3479,152.63,152.53,29.71385951]
[1727740284663,29.3479,152.63,152.54,21.31090234]
[1727740284664,22.7957,152.63,152.54,21.31090234]
[1727740284868,16.2636,152.63,152.56,29.71385951]
[1727740285166,6.5506,152.66,152.61,6.5523]
[1727740285542,13.0821,152.68,152.63,6.5517]
[1727740285747,13.0821,152.68,152.59,29.71385951]
[1727740285748,6.5321,152.68,152.59,29.71385951]
[1727740286174,6.5321,152.68,152.53,46.04095951]
[1727740286175,1.63815871,152.67,152.53,46.04095951]
[1727740286377,1.63815871,152.67,152.58,6.5539]
[1727740286378,6.5518,152.63,152.58,6.5539]
[1727740286556,8.19068931,152.62,152.57,6.5543]
[1727740287269,30.329584,152.61,152.55,6.5548]
[1727740287459,1.63878157,152.6,152.55,6.5548]
[1727740287871,23.776884,152.59,152.55,6.5548]
[1727740288073,1.63880126,152.58,152.55,6.5548]
[1727740289660,6.5522,152.62,152.57,6.5543]
[1727740290159,23.776884,152.61,152.57,6.5543]
[1727740292377,23.776884,152.61,152.54,1.31091665]
[1727740292586,23.776884,152.59,152.56,6.5547]
[1727740292882,1.63878188,152.58,152.55,6.5552]
[1727740293657,6.5525,152.62,152.53,1.31103677]
[1727740293864,23.776884,152.62,152.53,1.31103677]
[1727740294086,23.776884,152.62,152.58,6.5539]
[1727740294288,22.8155,152.63,152.58,6.5539]
[1727740294985,6.5526,152.61,152.55,6.5548]
[1727740295175,1.63873443,152.6,152.55,6.5548]
[1727740295487,22.8157,152.63,152.54,29.71385951]
[1727740295781,16.3761,152.67,152.54,29.71385951]
[1727740295782,6.5513,152.65,152.55,21.31087899]
[1727740295958,6.5513,152.65,152.6,6.5527]
[1727740296154,15.8179,152.67,152.61,6.5525]
[1727740296155,6.5505,152.66,152.61,6.5525]
[1727740296785,6.5509,152.65,152.6,6.553]
[1727740297082,15.8179,152.67,152.63,6.5517]
[1727740297383,1.13322889,152.7,152.66,6.5504]
[1727740297567,1.13322889,152.7,152.61,1.31028356]
[1727740297568,6.5488,152.7,152.61,1.31028356]
[1727740297776,6.5488,152.7,152.64,6.5512]
[1727740298859,30.326084,152.69,152.63,6.5517]
[1727740299087,6.5501,152.67,152.57,45.04715951]
[1727740299385,23.776884,152.65,152.61,6.5524]
[1727740300377,16.47627799,152.71,152.59,1.31053076]
[1727740300572,6.5492,152.69,152.6,29.71385951]
[1727740300772,6.5492,152.69,152.64,6.5513]
[1727740301263,23.02497799,152.71,152.6,29.71385951]
[1727740301587,23.02497799,152.71,152.67,6.55]
[1727740301588,0.08427799,152.71,152.67,6.55]
[1727740301780,1.72180278,152.71,152.65,6.5505]
[1727740302091,0.08427799,152.71,152.63,31.02399538]
[1727740302391,0.08427799,152.71,152.63,29.71385951]
[1727740303076,0.08427799,152.71,152.67,6.55]
[1727740303679,23.86116199,152.71,152.63,29.71385951]
[1727740303886,23.86116199,152.71,152.66,6.5505]
[1727740304087,23.86116199,152.71,152.63,29.71385951]
[1727740304691,1.63749551,152.7,152.63,29.71385951]
[1727740304880,1.63749551,152.7,152.67,6.5497]
[1727740305084,1.63749551,152.7,152.63,29.71385951]
[1727740305382,30.40986199,152.71,152.65,6.5505]
[1727740305767,23.86116199,152.71,152.64,1.31010814]
[1727740306088,23.776884,152.68,152.6,29.71385951]
[1727740306469,23.776884,152.68,152.64,6.5512]
[1727740306791,1.6378173,152.67,152.58,6.5344]
[1727740306998,23.776884,152.66,152.58,6.5344]
[1727740307284,23.776884,152.67,152.59,1.31045302]
[1727740307494,23.86116199,152.71,152.61,29.71385951]
[1727740307668,23.86116199,152.71,152.62,1.31025119]
[1727740308993,23.776884,152.71,152.62,1.31025119]
[1727740309192,6.5492,152.69,152.64,6.5513]
[1727740309568,23.776884,152.68,152.64,6.5513]
[1727740309966,23.776884,152.68,152.62,1.31025119]
[1727740309967,6.5483,152.71,152.62,1.31025119]
[1727740310598,22.0546,152.72,152.67,6.55]
[1727740310974,6.5484,152.71,152.65,6.5505]
[1727740311175,6.5484,152.71,152.62,1.31025119]
[1727740311401,22.98535523,152.76,152.7,6.5486]
[1727740311571,16.43885523,152.76,152.65,21.3097543]
[1727740311770,15.3072,152.76,152.65,21.3097543]
[1727740312289,6.547,152.75,152.7,6.5487]
[1727740313190,1.13276985,152.79,152.72,6.5479]
[1727740313367,16.0539,152.8,152.67,29.71385951]
[1727740313368,6.5454,152.78,152.69,15.9342]
[1727740313564,6.5454,152.78,152.73,6.5474]
[1727740313981,6.5449,152.79,152.74,6.547]
[1727740315190,6.5453,152.78,152.72,6.5475]
[1727740315390,25.41376885,152.77,152.69,15.9342]
[1727740315598,6.5458,152.77,152.71,6.5483]
[1727740315894,6.5447,152.8,152.74,6.5467]
[1727740316087,6.5448,152.8,152.74,6.5468]
[1727740316287,6.5449,152.79,152.74,6.5468]
[1727740316491,6.5449,152.79,152.72,6.5476]
[1727740316788,6.5455,152.78,152.72,6.5476]
[1727740316990,6.5448,152.8,152.73,6.5473]
[1727740317170,23.776884,152.79,152.74,6.547]
[1727740317370,6.5448,152.8,152.74,6.547]
[1727740318192,6.545,152.79,152.74,6.547]
[1727740318388,6.5444,152.81,152.74,1.30938923]
[1727740318589,6.5444,152.81,152.71,6.4866]
[1727740319985,23.776884,152.8,152.71,6.4866]
[1727740320492,23.776884,152.78,152.74,6.547]
[1727740320703,6.5445,152.8,152.75,6.5466]
[1727740320876,17.75483471,152.85,152.76,6.5458]
[1727740320877,6.544,152.82,152.76,6.5458]
[1727740321893,6.5432,152.83,152.78,6.545]
[1727740322096,7.67493471,152.85,152.78,18.54730308]
[1727740322280,6.5419,152.86,152.81,6.544]
[1727740323384,15.3575,152.89,152.78,25.12950308]
[1727740323584,15.3575,152.89,152.78,6.5822]
[1727740323585,6.5427,152.84,152.78,6.5822]
[1727740323902,6.5427,152.84,152.79,6.5447]
[1727740324791,23.776884,152.87,152.78,6.5822]
[1727740325113,6.5428,152.84,152.79,6.5448]
[1727740325292,8.1795359,152.83,152.77,6.5454]
[1727740325610,23.776884,152.82,152.76,15.9984]
[1727740325779,23.776884,152.82,152.75,6.5465]
[1727740325780,6.5445,152.8,152.75,6.5465]
[1727740325986,1.63655398,152.79,152.75,6.5465]
[1727740326610,8.18145398,152.79,152.72,15.585]
[1727740326779,30.322284,152.78,152.72,15.585]
[1727740326979,1.6367697,152.77,152.72,15.585]
[1727740327385,1.6367697,152.77,152.72,22.1325]
[1727740327603,1.6367697,152.77,152.73,6.5472]
[1727740329108,30.322284,152.78,152.73,6.5472]
[1727740329310,23.776884,152.78,152.74,6.547]
[1727740329903,16.301,152.82,152.72,15.585]
[1727740329904,23.776884,152.8,152.73,1.30940597]
[1727740330107,30.322184,152.78,152.74,6.5466]
[1727740330300,1.63675968,152.77,152.74,6.5466]
[1727740330503,23.776884,152.78,152.74,6.5466]
[1727740331012,1.63675961,152.77,152.74,6.5466]
[1727740331397,25.41364419,152.78,152.74,6.5466]
[1727740331595,6.5457,152.77,152.72,6.5479]
[1727740331927,26.1714,152.83,152.71,1.30960798]
[1727740332110,23.776884,152.8,152.75,6.5462]
[1727740332324,6.5444,152.81,152.76,6.5458]
[1727740332487,6.5446,152.8,152.75,6.5465]
[1727740333212,1.63664836,152.79,152.72,29.66748991]
[1727740333392,8.18164836,152.79,152.74,6.5466]
[1727740334311,23.776884,152.79,152.75,6.5465]
[1727740335007,30.321784,152.79,152.72,29.66748991]
[1727740335813,23.776884,152.79,152.72,29.66748991]
[1727740336108,23.776884,152.75,152.68,15.6644]
[1727740336313,8.18451718,152.74,152.68,15.6644]
[1727740336615,8.18451718,152.74,152.67,6.55]
[1727740336616,6.5479,152.72,152.67,6.55]
[1727740336785,1.63742209,152.71,152.67,6.55]
[1727740337206,30.324384,152.73,152.68,6.5495]
[1727740337713,23.776884,152.73,152.64,15.2277]
[1727740338010,23.776884,152.74,152.66,29.66748991]
[1727740338215,23.776884,152.74,152.67,1.3097954]
[1727740338421,23.776884,152.75,152.67,1.3097954]
[1727740338714,23.776884,152.76,152.72,6.5478]
[1727740345105,26.3033,152.8,152.75,6.5463]
[1727740345106,13.148,152.8,152.75,6.5463]
[1727740345311,21.6551,152.82,152.77,6.5456]
[1727740345619,6.5441,152.81,152.76,6.5461]
[1727740345924,15.1115,152.82,152.72,29.66748991]
[1727740346101,21.6555,152.82,152.76,6.5461]
[1727740346422,6.5442,152.81,152.76,6.5461]
[1727740346625,6.5449,152.79,152.74,6.5466]
[1727740347120,15.1115,152.82,152.71,15.2087]
[1727740347121,23.776884,152.77,152.71,15.2087]
[1727740347327,23.776884,152.77,152.72,6.5478]
[1727740347328,1.63690159,152.76,152.72,6.5478]
[1727740347504,23.776884,152.77,152.73,6.5474]
[1727740351411,34.8115,152.82,152.7,6.5487]
[1727740351412,30.323884,152.75,152.7,6.5487]
[1727740351615,23.776884,152.73,152.7,6.5487]
[1727740351831,1.63719957,152.74,152.69,6.5491]
[1727740351832,1.63726105,152.72,152.69,6.5491]
[1727740352710,1.63727963,152.73,152.69,6.5491]
[1727740353107,26.2819,152.79,152.67,16.51851812]
[1727740353412,23.776884,152.75,152.69,29.66748991]
[1727740353612,23.776884,152.75,152.69,30.97715539]
[1727740354118,23.776884,152.75,152.72,6.5478]
[1727740354315,23.776884,152.76,152.72,6.5478]
[1727740354515,23.776884,152.76,152.69,29.66748991]
[1727740354728,30.323084,152.76,152.71,6.5483]
[1727740355226,23.776884,152.73,152.67,15.2087]
[1727740355430,6.5471,152.74,152.67,15.2087]
[1727740355431,1.63727325,152.72,152.67,15.2087]
[1727740356404,1.63730483,152.71,152.67,15.2087]
[1727740356602,1.63730309,152.73,152.67,15.2087]
[1727740357425,23.776884,152.72,152.67,6.5499]
[1727740358428,30.324784,152.72,152.67,6.5499]
[1727740359127,6.5484,152.71,152.66,6.5504]
[1727740359342,23.776884,152.7,152.66,6.5504]
[1727740359638,23.776884,152.7,152.63,44.81528991]
[1727740359933,23.776884,152.7,152.66,6.5501]
[1727740360108,23.776884,152.71,152.66,6.5501]
[1727740361119,23.776884,152.7,152.66,6.5501]
[1727740361536,23.776884,152.7,152.67,6.55]
[1727740361853,23.776884,152.71,152.67,6.55]
[1727740362134,23.776884,152.72,152.69,6.5491]
[1727740365152,6.547,152.74,152.63,44.81528991]
[1727740365321,8.18481334,152.73,152.68,6.5495]
[1727740366036,6.5484,152.71,152.66,6.5504]
[1727740366231,1.63760375,152.7,152.66,6.5504]
[1727740366617,23.776884,152.69,152.66,6.5504]
[1727740366817,1.63767798,152.68,152.63,15.1478]
[1727740367048,23.776884,152.7,152.66,6.5504]
[1727740374753,23.776884,152.7,152.67,6.55]
[1727740375131,23.776884,152.71,152.67,6.55]
[1727740376850,30.325184,152.71,152.67,6.55]
[1727740377864,34.8409,152.75,152.68,6.5493]
[1727740377865,6.5478,152.73,152.68,6.5493]
[1727740378027,7.13558444,152.77,152.72,6.5479]
[1727740378028,6.5465,152.76,152.72,6.5479]
[1727740378227,6.5465,152.76,152.71,6.5483]
[1727740380648,23.776884,152.75,152.71,6.5483]
[1727740381534,15.2178,152.79,152.69,18.57458572]
[1727740381844,6.5454,152.78,152.73,6.5472]
[1727740383038,23.776884,152.77,152.73,6.5472]
[1727740384835,23.776884,152.75,152.69,16.2855]
[1727740385037,8.1843315,152.74,152.69,22.8346]
[1727740385250,23.776884,152.73,152.69,6.5491]
[1727740385452,8.18547246,152.72,152.67,6.5498]
[1727740386130,23.776884,152.73,152.68,6.5495]
[1727740386651,30.324384,152.73,152.68,6.5495]
[1727740388548,23.776884,152.73,152.69,6.5491]
[1727740388763,23.776884,152.74,152.7,6.5484]
[1727740389137,6.5462,152.76,152.71,6.5483]
[1727740390957,23.776884,152.74,152.7,6.5487]
[1727740394265,23.776884,152.74,152.66,24.59678572]
[1727740394266,23.776884,152.72,152.69,6.5492]
[1727740394444,1.63734103,152.71,152.69,6.5492]
[1727740394970,23.776884,152.73,152.69,6.5492]
[1727740396357,23.776884,152.74,152.7,6.5486]
[1727740398270,23.776884,152.74,152.71,6.5479]
[1727740398451,6.5461,152.77,152.68,18.57458572]
[1727740398452,6.5461,152.77,152.69,1.30964597]
[1727740398873,6.5461,152.77,152.72,6.5478]
[1727740400154,23.776884,152.76,152.72,6.5478]
[1727740406478,1.63696882,152.75,152.72,6.5478]
[1727740407569,1.63696882,152.75,152.71,6.5483]
[1727740407975,23.776884,152.74,152.66,24.59678572]
[1727740408179,23.776884,152.74,152.67,1.30977066]
[1727740408473,23.776884,152.74,152.71,6.5483]
[1727740408659,23.776884,152.75,152.71,6.5483]
[1727740409959,23.776884,152.73,152.66,6.0222]
[1727740410162,1.63730783,152.72,152.66,6.0222]
[1727740410977,1.63730783,152.72,152.68,6.5493]
[1727740411383,1.63730783,152.72,152.66,6.0222]
[1727740411556,23.776884,152.73,152.69,6.5491]
[1727740411958,23.776884,152.73,152.66,24.59678572]
[1727740412168,23.776884,152.74,152.68,18.57458572]
[1727740412365,23.776884,152.74,152.71,6.5482]
[1727740412575,23.776884,152.75,152.71,6.5482]
[1727740417007,23.776884,152.75,152.72,6.5477]
[1727740417174,23.776884,152.75,152.68,19.88429399]
[1727740418186,6.617,152.81,152.72,18.57458572]
[1727740418491,6.5441,152.81,152.76,6.5461]
[1727740419190,6.5438,152.82,152.77,6.5457]
[1727740420184,6.544,152.81,152.76,6.5462]
[1727740420890,22.3798,152.83,152.78,6.5453]
[1727740421100,0.08427799,152.84,152.78,6.5453]
[1727740421274,6.62707799,152.84,152.78,6.5453]
[1727740421470,6.62707799,152.84,152.79,6.5445]
[1727740423283,6.62707799,152.84,152.77,17.53578016]
[1727740423284,0.08427799,152.84,152.8,6.5444]
[1727740423797,0.08427799,152.84,152.8,18.57458572]
[1727740423991,0.08427799,152.84,152.83,6.5432]
[1727740424290,0.08427799,152.84,152.82,6.5436]
[1727740426773,0.08427799,152.84,152.83,6.5432]
[1727740426973,0.08427799,152.84,152.83,28.3212]
[1727740427175,0.08427799,152.84,152.83,29.62952019]
[1727740428795,0.8270209,152.88,152.83,23.08632019]
[1727740428984,0.8270209,152.88,152.86,6.5417]
[1727740431407,0.8270209,152.88,152.85,6.5423]
[1727740432104,0.8270209,152.88,152.86,6.5418]
[1727740434508,0.8270209,152.88,152.84,6.5427]
[1727740434797,1.63560116,152.87,152.84,6.5427]
[1727740435609,1.63560116,152.87,152.8,18.57458572]
[1727740435822,23.776884,152.86,152.79,22.1084]
[1727740436001,1.63596678,152.85,152.79,22.1084]
[1727740436198,1.63596678,152.85,152.79,16.0776]
[1727740436400,30.319684,152.84,152.79,22.6224]
[1727740436606,1.63611805,152.83,152.79,6.5448]
[1727740436802,1.63611805,152.83,152.78,6.5452]
[1727740437116,1.63611805,152.83,152.79,6.5447]
[1727740437516,1.63611805,152.83,152.76,18.57458572]
[1727740438022,1.63611805,152.83,152.8,6.5444]
[1727740438393,1.63611805,152.83,152.76,18.57458572]
[1727740438703,23.776884,152.82,152.78,6.5452]
[1727740438897,1.63626338,152.81,152.79,6.5448]
[1727740440411,1.63625779,152.81,152.79,6.5448]
[1727740441508,23.776884,152.83,152.79,6.5448]
[1727740441906,39.641184,152.83,152.74,18.57458572]
[1727740442124,39.641184,152.83,152.72,18.57458572]
[1727740442125,23.776884,152.81,152.72,18.57458572]
[1727740442419,23.776884,152.81,152.74,18.57458572]
[1727740442624,23.776884,152.82,152.78,6.5453]
[1727740443513,23.776884,152.82,152.74,18.57458572]
[1727740443718,25.41314543,152.82,152.79,6.5448]
[1727740443921,23.776884,152.82,152.79,6.5448]
[1727740444432,23.776884,152.82,152.78,6.5453]
[1727740446224,23.776884,152.83,152.79,6.5449]
[1727740446908,6.5422,152.86,152.78,18.57458572]
[1727740447233,23.155,152.87,152.82,6.5436]
[1727740447928,16.6132,152.87,152.79,1.30878967]
[1727740448226,6.542,152.86,152.81,6.5439]
[1727740448605,6.542,152.86,152.82,6.5436]
[1727740448606,23.776884,152.85,152.82,6.5436]
[1727740449028,23.776884,152.86,152.82,6.5436]
[1727740449603,1.63587348,152.85,152.78,18.57458572]
[1727740449947,30.319684,152.84,152.79,6.5448]
[1727740450230,1.63617447,152.83,152.79,6.5448]
[1727740450420,1.63617447,152.83,152.77,16.4481]
[1727740450623,1.63617447,152.83,152.8,6.5444]
[1727740451523,30.319684,152.84,152.8,6.5444]
[1727740453125,8.17946174,152.83,152.79,6.5449]
[1727740454733,6.5433,152.83,152.79,6.5449]
[1727740455035,30.319684,152.84,152.79,6.5449]
[1727740456213,1.63624403,152.83,152.79,6.5449]
[1727740456726,30.319684,152.84,152.79,6.5449]
[1727740457106,0.8270209,152.88,152.83,6.5431]
[1727740457305,0.8270209,152.88,152.82,18.57458572]
[1727740457513,0.8270209,152.88,152.85,6.5422]
[1727740458009,0.8270209,152.88,152.86,6.5418]
[1727740458929,0.8270209,152.88,152.86,6.45752201]
[1727740460432,0.8270209,152.88,152.87,6.5415]
[1727740462215,0.8270209,152.88,152.87,7.84968981]
[1727740463130,0.8270209,152.88,152.87,6.5415]
[1727740467222,0.8270209,152.88,152.83,34.10168572]
[1727740467420,0.8270209,152.88,152.87,6.5415]
[1727740473133,0.8270209,152.88,152.83,15.5271]
[1727740473339,0.8270209,152.88,152.86,6.5418]
[1727740474548,0.8270209,152.88,152.85,11.85534337]
[1727740474549,0.8270209,152.88,152.87,6.5415]
[1727740480641,0.8270209,152.88,152.86,6.5418]
[1727740481951,0.8270209,152.88,152.87,18.39684337]
[1727740488033,0.8270209,152.88,152.87,6.5415]
[1727740488646,0.8270209,152.88,152.86,6.5418]
[1727740488962,0.8270209,152.88,152.83,27.38244337]
[1727740489170,0.8270209,152.88,152.86,6.5419]
[1727740489339,0.8270209,152.88,152.83,15.5271]
[1727740489541,0.8270209,152.88,152.85,18.39764337]
[1727740492843,0.8270209,152.88,152.85,6.5423]
[1727740495257,0.8270209,152.88,152.85,11.85534337]
[1727740495454,0.8270209,152.88,152.87,6.5415]
[1727740498367,0.8270209,152.88,152.87,18.39684337]
[1727740500276,0.3811688,152.98,152.94,6.5385]
[1727740500465,0.3811688,152.98,152.93,11.85534337]
[1727740502189,24.1580528,152.98,152.94,6.5383]
[1727740502879,0.3811688,152.98,152.96,6.5376]
[1727740503257,0.3811688,152.98,152.95,6.538]
[1727740506379,0.3811688,152.98,152.94,6.5384]
[1727740506562,0.3811688,152.98,152.95,6.538]
[1727740509368,0.3811688,152.98,152.96,6.5375]
[1727740510263,0.3811688,152.98,152.97,6.5372]
[1727740511994,0.3811688,152.98,152.95,6.5376]
[1727740512893,6.9179688,152.98,152.93,6.5385]
[1727740513070,25.41152165,152.97,152.93,6.5385]
[1727740513271,25.41152165,152.97,152.94,6.5384]
[1727740513470,25.41152165,152.97,152.9,11.85534337]
[1727740513666,25.41152165,152.97,152.93,6.5388]
[1727740513866,25.41152165,152.97,152.85,16.4796]
[1727740514097,25.41152165,152.97,152.88,11.85534337]
[1727740514472,23.776884,152.94,152.88,11.85534337]
[1727740514793,1.63495538,152.93,152.88,11.85534337]
[1727740515683,23.776884,152.92,152.85,16.4796]
[1727740515871,23.776884,152.9,152.85,6.5419]
[1727740516074,1.63544626,152.89,152.85,6.5419]
[1727740516283,23.776884,152.9,152.86,6.5417]
[1727740517287,23.776884,152.91,152.84,11.85534337]
[1727740517479,23.776884,152.91,152.87,6.5414]
[1727740518791,23.776884,152.91,152.85,11.85534337]
[1727740518999,1.63542688,152.9,152.86,6.5418]
[1727740519178,30.316684,152.91,152.86,6.5418]
[1727740519683,23.776884,152.89,152.86,6.5418]
[1727740519895,30.316684,152.91,152.86,6.5418]
[1727740520397,1.63547963,152.9,152.86,6.5418]
[1727740520693,23.776884,152.89,152.86,6.5418]
[1727740520992,23.776884,152.87,152.83,6.5428]
[1727740521198,1.63578134,152.86,152.82,6.5435]
[1727740522597,23.776884,152.87,152.83,6.5431]
[1727740522800,25.41266207,152.87,152.83,6.5431]
[1727740523893,1.63577814,152.91,152.83,11.85534337]
[1727740524093,23.776884,152.89,152.84,11.85534337]
[1727740524295,22.3402,152.92,152.87,6.5414]
[1727740524477,22.3402,152.92,152.76,15.7687]
[1727740524478,6.5399,152.91,152.86,18.39714337]
[1727740524798,6.5399,152.91,152.86,6.5418]
[1727740525582,23.776884,152.9,152.86,6.5418]
[1727740525992,23.776884,152.9,152.84,6.5424]
[1727740525993,23.776884,152.88,152.84,6.5424]
[1727740526196,1.63561317,152.87,152.84,6.5424]
[1727740526378,23.776884,152.88,152.84,6.5424]
[1727740526674,1.63559663,152.87,152.84,6.5424]
[1727740526871,1.63559663,152.87,152.85,6.5423]
[1727740527074,23.776884,152.88,152.85,6.5423]
[1727740527295,1.63559456,152.87,152.85,6.5423]
[1727740527492,23.776884,152.89,152.84,11.85534337]
[1727740527798,22.3401,152.92,152.87,18.39674337]
[1727740528002,15.8008,152.92,152.89,6.5406]
[1727740528898,15.8008,152.92,152.87,11.85534337]
[1727740529477,23.776884,152.91,152.87,11.85534337]
[1727740529708,23.776884,152.91,152.88,6.541]
[1727740529889,23.776884,152.91,152.87,18.39674337]
[1727740532208,1.6353068,152.9,152.82,15.3562]
[1727740532379,1.6353068,152.9,152.85,6.5423]
[1727740532775,23.776884,152.89,152.85,6.5423]
[1727740532973,1.63557465,152.88,152.84,6.5427]
[1727740533900,23.776884,152.89,152.84,6.5427]
[1727740534088,1.63566809,152.88,152.84,6.5427]
[1727740534808,1.63566809,152.88,152.85,6.5422]
[1727740535401,1.63566809,152.88,152.78,15.256]
[1727740535402,23.776884,152.89,152.87,6.5414]
[1727740535903,23.776884,152.89,152.86,6.5418]
[1727740536086,23.776884,152.9,152.86,6.5418]
[1727740536902,6.5383,152.95,152.89,11.85534337]
[1727740537093,15.4087,152.96,152.89,11.85534337]
[1727740537294,6.5386,152.94,152.88,6.5406]
[1727740537500,6.5386,152.94,152.89,6.5404]
[1727740539088,23.776884,152.93,152.9,6.5401]
[1727740539618,23.776884,152.94,152.9,6.5401]
[1727740540403,23.776884,152.95,152.91,6.5397]
[1727740540607,21.9464,152.96,152.91,6.5397]
[1727740542096,23.776884,152.95,152.91,6.5397]
[1727740542306,23.776884,152.95,152.92,6.5392]
[1727740542618,23.776884,152.93,152.89,6.5406]
[1727740542816,1.63507765,152.92,152.89,6.5406]
[1727740543118,1.63507765,152.92,152.85,18.52048703]
[1727740543119,23.776884,152.93,152.9,6.5402]
[1727740543490,23.776884,152.94,152.9,6.5402]
[1727740544992,23.776884,152.95,152.87,18.52048703]
[1727740545197,23.776884,152.95,152.91,6.5397]
[1727740545993,15.4087,152.96,152.88,1.30800021]
[1727740546207,6.2229,152.97,152.93,6.5387]
[1727740546518,1.63471259,152.96,152.91,6.5395]
[1727740546698,1.63471259,152.96,152.9,6.5401]
[1727740547120,6.5381,152.95,152.9,6.5401]